bitfinex-derivatives/quotes_BTCF0:USTF0_20210111
["timestamp","ask_amount","ask_price","bid_price","bid_amount"]
[1610388670412,0.07759,32653.0,32644.0,0.13632608]
[1610388671313,0.3179,32659.0,32644.0,0.13632608]
[1610388672314,0.3179,32659.0,32658.0,0.13632608]
[1610388672616,0.3179,32659.0,32639.0,0.1865022]
[1610388672814,0.03,32643.0,32639.0,0.1865022]
[1610388674417,0.03,32643.0,32642.0,0.13632608]
[1610388677521,0.03,32643.0,32639.0,0.1865022]
[1610388678424,0.03,32643.0,32642.0,0.13632608]
[1610388678633,0.03,32643.0,32639.0,0.1865022]
[1610388678855,0.03,32643.0,32639.0,0.0981322]
[1610388679039,0.13855,32643.0,32639.0,0.0981322]
[1610388680325,0.13855,32643.0,32639.0,0.09626353]
[1610388680525,0.13632608,32640.0,32639.0,0.09626353]
[1610388680726,0.13632608,32640.0,32617.0,4.3166]
[1610388682427,0.13855,32643.0,32622.0,0.13632608]
[1610388683227,0.13855,32643.0,32617.0,4.3166]
[1610388684033,1.14526336,32643.0,32617.0,4.3166]
[1610388684429,0.13855,32643.0,32617.0,4.3166]
[1610388684835,1.14211358,32643.0,32617.0,4.3166]
[1610388685133,1.14211358,32643.0,32621.0,0.13632608]
[1610388685333,1.14211358,32643.0,32617.0,4.3166]
[1610388685535,1.00269296,32641.0,32604.0,0.07856]
[1610388685733,1.00269296,32641.0,32595.0,3.5576]
[1610388685933,1.00115472,32638.0,32595.0,3.5576]
[1610388686335,1.38994871,32643.0,32595.0,3.5576]
[1610388686336,1.00085755,32637.0,32595.0,3.5576]
[1610388686635,1.00064983,32636.0,32595.0,3.5576]
[1610388686835,1.09785983,32636.0,32595.0,3.5576]
[1610388687038,0.99963798,32635.0,32595.0,3.5576]
[1610388687236,0.99963798,32635.0,32612.0,0.13632608]
[1610388687439,0.99990294,32634.0,32612.0,0.13632608]
[1610388687737,0.99935712,32635.0,32612.0,0.13632608]
[1610388688637,0.99880009,32633.0,32612.0,0.13632608]
[1610388688837,0.99857789,32634.0,32612.0,0.13632608]
[1610388689041,0.99857789,32634.0,32595.0,3.5576]
[1610388689238,0.13632608,32601.0,32594.0,0.07558]
[1610388689437,0.99857789,32634.0,32594.0,0.07558]
[1610388689438,0.0788,32614.0,32594.0,0.07558]
[1610388689638,0.0788,32614.0,32582.0,0.11281]
[1610388689837,3.99,32614.0,32582.0,0.11281]
[1610388690438,0.0788,32614.0,32582.0,0.11281]
[1610388690638,3.9265,32606.0,32582.0,0.11281]
[1610388690838,4.00849,32606.0,32582.0,0.11281]
[1610388691037,4.00849,32606.0,32572.0,4.1907]
[1610388691238,0.13632608,32601.0,32600.0,0.36967413]
[1610388691438,0.13632608,32601.0,32600.0,0.18258463]
[1610388692439,0.13632608,32601.0,32572.0,4.1907]
[1610388693239,0.13632608,32573.0,32572.0,4.1907]
[1610388693438,0.22497608,32573.0,32566.0,0.13632608]
[1610388694038,0.22497608,32573.0,32552.0,4.6335]
[1610388694440,0.08865,32573.0,32552.0,4.6335]
[1610388695342,0.08865,32573.0,32569.0,0.13632608]
[1610388695541,0.08865,32573.0,32552.0,4.6335]
[1610388697242,0.08865,32573.0,32559.0,0.13632608]
[1610388697442,0.08865,32573.0,32552.0,4.6335]
[1610388698442,3.5872,32586.0,32552.0,4.6335]
[1610388699244,3.5872,32586.0,32577.0,0.13632608]
[1610388699444,0.98268824,32602.0,32577.0,0.13632608]
[1610388699644,1.04781912,32605.0,32577.0,0.13632608]
[1610388700046,0.08199,32606.0,32577.0,0.13632608]
[1610388700244,5.4949253,32608.0,32577.0,0.13632608]
[1610388700445,4.5073,32608.0,32577.0,0.13632608]
[1610388700843,0.98965241,32612.0,32577.0,0.13632608]
[1610388701044,0.98965241,32612.0,32579.0,3.9044]
[1610388701243,0.0788,32614.0,32579.0,3.9044]
[1610388701443,0.99105116,32616.0,32604.0,0.13632608]
[1610388701643,0.9920058,32618.0,32604.0,0.13632608]
[1610388701843,0.9920058,32618.0,32579.0,3.9044]
[1610388702043,0.08898,32618.0,32579.0,3.9044]
[1610388703145,0.98769439,32614.0,32579.0,3.9044]
[1610388703343,0.13632608,32594.0,32593.0,0.13632608]
[1610388703545,0.22730608,32594.0,32577.0,0.03]
[1610388704144,0.09098,32594.0,32577.0,0.03]
[1610388705445,0.09098,32594.0,32578.0,0.13632608]
[1610388707155,0.09098,32594.0,32577.0,0.03]
[1610388707756,0.09098,32594.0,32593.0,0.13632608]
[1610388708654,0.13632608,32597.0,32593.0,0.13632608]
[1610388708856,0.99108472,32617.0,32593.0,0.13632608]
[1610388709258,1.08224629,32618.0,32591.0,4.1312]
[1610388709657,0.08898,32618.0,32614.0,0.13632608]
[1610388709856,0.99628398,32622.0,32614.0,0.13632608]
[1610388710057,0.99821654,32626.0,32591.0,4.1312]
[1610388710660,0.2719,32627.0,32591.0,4.1312]
[1610388711760,0.2719,32627.0,32619.0,0.13632608]
[1610388712160,0.99770986,32627.0,32591.0,4.1312]
[1610388712360,0.99735427,32626.0,32591.0,4.1312]
[1610388712761,0.9973116,32623.0,32591.0,4.1312]
[1610388713164,0.99736062,32622.0,32591.0,4.1312]
[1610388713361,0.99736062,32622.0,32581.0,0.11083]
[1610388713561,0.9964708,32619.0,32577.0,4.9169]
[1610388713762,0.13632608,32587.0,32585.0,0.13632608]
[1610388714162,0.13632608,32587.0,32577.0,0.03]
[1610388715765,0.13632608,32587.0,32586.0,0.13632608]
[1610388716562,0.13632608,32587.0,32577.0,0.03]
[1610388716963,0.21274608,32587.0,32577.0,0.03]
[1610388717762,0.07642,32587.0,32578.0,0.09595627]
[1610388719766,0.07642,32587.0,32581.0,0.13632608]
[1610388721881,0.07642,32587.0,32586.0,0.13632608]
[1610388722071,0.13632608,32592.0,32586.0,0.13632608]
[1610388723774,0.13632608,32592.0,32578.0,0.23228235]
[1610388725075,0.09416,32594.0,32578.0,0.23228235]
[1610388725277,1.00026627,32610.0,32578.0,0.23228235]
[1610388725675,1.00271532,32611.0,32578.0,0.23228235]
[1610388725875,1.53004939,32616.0,32607.0,0.13632608]
[1610388725876,1.0062784,32613.0,32607.0,0.13632608]
[1610388726277,1.32706932,32617.0,32607.0,0.13632608]
[1610388726677,1.32706932,32617.0,32607.0,0.13445565]
[1610388727076,1.32706932,32617.0,32596.0,4.0166]
[1610388727283,0.3179,32617.0,32596.0,4.0166]
[1610388727879,0.3179,32617.0,32605.0,0.13632608]
[1610388729782,0.3179,32617.0,32616.0,0.13632608]
[1610388731482,0.3179,32617.0,32599.0,4.8048]
[1610388731883,0.3179,32617.0,32602.0,0.13632608]
[1610388733789,0.3179,32617.0,32611.0,0.13632608]
[1610388734387,0.3179,32617.0,32599.0,4.8048]
[1610388734789,1.02859465,32616.0,32582.0,0.09231]
[1610388734990,1.02859465,32616.0,32581.0,5.0053]
[1610388735190,1.02865617,32614.0,32578.0,0.09595627]
[1610388735589,1.02980093,32611.0,32578.0,0.09595627]
[1610388735788,1.14181093,32611.0,32592.0,0.13632608]
[1610388736394,1.02988364,32610.0,32592.0,0.13632608]
[1610388736590,1.03105265,32608.0,32592.0,0.13632608]
[1610388737291,1.03207232,32607.0,32592.0,0.13632608]
[1610388737890,1.03207232,32607.0,32578.0,0.09595627]
[1610388737891,1.03207232,32607.0,32606.0,0.13632608]
[1610388738091,1.03217463,32609.0,32606.0,0.13632608]
[1610388738491,1.03334487,32608.0,32606.0,0.13445568]
[1610388738692,1.03328446,32610.0,32606.0,0.13445568]
[1610388739091,1.1453136,32611.0,32606.0,0.13445568]
[1610388739291,1.1453136,32611.0,32592.0,4.766]
[1610388739491,1.03419766,32609.0,32592.0,4.766]
[1610388739691,1.03419766,32609.0,32585.0,0.11303]
[1610388739891,1.03423038,32607.0,32578.0,0.09595627]
[1610388740291,1.03426076,32604.0,32587.0,0.13632608]
[1610388740492,1.11303076,32604.0,32587.0,0.13632608]
[1610388741092,1.03476809,32603.0,32587.0,0.13632608]
[1610388741495,1.03513525,32602.0,32587.0,0.13632608]
[1610388741693,1.03513525,32602.0,32578.0,0.09595627]
[1610388742292,1.03513525,32602.0,32590.0,0.13632608]
[1610388742793,1.03550537,32601.0,32590.0,0.13632608]
[1610388743894,1.03610805,32600.0,32590.0,0.13632608]
[1610388744493,0.13632608,32591.0,32590.0,0.13632608]
[1610388750200,0.1024,32595.0,32590.0,0.13632608]
[1610388750400,0.1024,32595.0,32594.0,0.13632608]
[1610388750600,0.13632608,32597.0,32594.0,0.13632608]
[1610388752304,1.03886977,32601.0,32594.0,0.13632608]
[1610388752503,0.13632608,32601.0,32600.0,0.13632608]
[1610388752904,1.1752478,32601.0,32600.0,0.13445558]
[1610388753104,0.13632608,32601.0,32600.0,0.13445558]
[1610388753304,1.03892207,32602.0,32600.0,0.13445558]
[1610388754007,0.07877,32604.0,32600.0,0.13445558]
[1610388754008,1.11773581,32604.0,32600.0,0.13445558]
[1610388754413,0.07877,32604.0,32600.0,0.13445558]
[1610388755009,1.03915906,32606.0,32600.0,0.13445558]
[1610388755209,1.0391395,32605.0,32600.0,0.13445558]
[1610388755808,1.03941424,32604.0,32600.0,0.13445558]
[1610388756509,1.17574032,32604.0,32600.0,0.13445558]
[1610388756711,1.03941424,32604.0,32600.0,0.13445558]
[1610388758212,1.04043597,32605.0,32600.0,0.13445558]
[1610388758613,0.13632608,32606.0,32604.0,0.13632608]
[1610388759312,1.04118113,32605.0,32604.0,0.13632608]
[1610388763518,1.17767836,32606.0,32604.0,0.13632608]
[1610388763719,1.04135228,32606.0,32604.0,0.13632608]
[1610388763921,1.04134605,32606.0,32604.0,0.13632608]
[1610388766523,1.04131049,32607.0,32604.0,0.13632608]
[1610388767827,1.04123224,32608.0,32604.0,0.13632608]
[1610388768237,1.04122157,32607.0,32604.0,0.13632608]
[1610388768630,0.13632608,32605.0,32604.0,0.13632608]
[1610388769029,1.04116489,32608.0,32604.0,0.13632608]
[1610388770529,0.11201,32611.0,32604.0,0.13445587]
[1610388770530,1.17748492,32605.0,32604.0,0.13445587]
[1610388772132,1.17748492,32605.0,32591.0,3.9784]
[1610388772633,1.04138102,32603.0,32601.0,0.13632608]
[1610388773033,1.13203102,32603.0,32601.0,0.13632608]
[1610388774635,0.13632608,32602.0,32601.0,0.13632608]
[1610388774839,1.17787232,32602.0,32601.0,0.13632608]
[1610388775842,1.17787232,32602.0,32587.0,4.9603]
[1610388776241,1.04167574,32599.0,32587.0,4.9603]
[1610388776641,1.04173872,32598.0,32594.0,0.13632608]
[1610388777943,1.04188609,32597.0,32594.0,0.13632608]
[1610388778544,1.04208733,32596.0,32594.0,0.13632608]
[1610388778743,0.13632608,32595.0,32594.0,0.13632608]
[1610388780047,1.17864431,32595.0,32594.0,0.13632608]
[1610388780644,1.04231823,32595.0,32587.0,4.9603]
[1610388780844,1.17864431,32595.0,32588.0,0.13632608]
[1610388781245,1.04249301,32594.0,32588.0,0.13632608]
[1610388781849,1.17880903,32595.0,32588.0,0.13632608]
[1610388782752,1.04265393,32596.0,32594.0,0.13632608]
[1610388784351,1.04279126,32598.0,32594.0,0.13632608]
[1610388784751,1.04300048,32599.0,32594.0,0.13632608]
[1610388785051,1.04299162,32598.0,32594.0,0.13632608]
[1610388785451,1.04303303,32599.0,32594.0,0.13632608]
[1610388785853,1.04313941,32598.0,32594.0,0.13632608]
[1610388786056,1.63911265,32606.0,32594.0,0.13632608]
[1610388786057,1.30381935,32606.0,32594.0,0.13632608]
[1610388786253,1.30381935,32606.0,32604.0,3.8071]
[1610388786453,1.30381935,32606.0,32598.0,0.07678]
[1610388786654,1.30355092,32614.0,32598.0,0.07678]
[1610388786852,1.30355092,32614.0,32604.0,4.5375]
[1610388787054,1.30345096,32616.0,32604.0,4.5375]
[1610388787254,1.30345096,32616.0,32615.0,0.13632608]
[1610388787453,0.3179,32617.0,32615.0,0.13632608]
[1610388788054,1.30300696,32621.0,32615.0,0.13632608]
[1610388788254,1.30290686,32623.0,32615.0,0.13632608]
[1610388788654,1.30191105,32629.0,32615.0,0.13632608]
[1610388788856,1.30191105,32629.0,32622.0,4.3284]
[1610388789054,1.30182032,32634.0,32622.0,4.3284]
[1610388789254,1.30182032,32634.0,32633.0,0.64882608]
[1610388789454,1.30034803,32637.0,32633.0,0.64882608]
[1610388789654,1.30034136,32641.0,32633.0,0.64882608]
[1610388790054,1.33014717,32643.0,32633.0,0.13632608]
[1610388790254,1.33014717,32643.0,32640.0,3.9707]
[1610388790457,0.03,32643.0,32640.0,3.9707]
[1610388790855,0.03,32643.0,32633.0,0.13632608]
[1610388791257,0.03,32643.0,32642.0,0.13632608]
[1610388791658,0.03,32643.0,32642.0,0.22280608]
[1610388792056,1.85077293,32672.0,32642.0,0.22280608]
[1610388792057,1.29545444,32669.0,32642.0,0.22280608]
[1610388792456,1.85056989,32676.0,32668.0,3.6804]
[1610388792457,1.29255475,32676.0,32668.0,3.6804]
[1610388792860,1.29218686,32686.0,32668.0,3.6804]
[1610388793256,1.29208103,32690.0,32668.0,3.6804]
[1610388793659,1.28833699,32696.0,32668.0,3.6804]
[1610388793856,1.28833699,32696.0,32695.0,0.13632608]
[1610388794057,1.2880264,32698.0,32695.0,0.13632608]
[1610388794458,1.2843905,32707.0,32695.0,0.13445981]
[1610388794656,1.28400672,32708.0,32695.0,0.13445981]
[1610388795057,1.28389914,32713.0,32695.0,0.13445981]
[1610388795457,0.13632608,32721.0,32695.0,0.13445981]
[1610388795857,0.13632608,32721.0,32714.0,0.13632608]
[1610388796059,4.4773,32707.0,32681.0,0.11354]
[1610388796256,4.56476,32707.0,32681.0,0.11354]
[1610388797459,0.08746,32707.0,32681.0,0.11354]
[1610388797660,5.0764,32694.0,32663.0,4.3131]
[1610388797859,5.0764,32694.0,32687.0,0.13632608]
[1610388798262,1.02033054,32703.0,32687.0,0.13632608]
[1610388798659,0.08746,32707.0,32687.0,0.13632608]
[1610388799862,1.01676796,32725.0,32706.0,0.13632608]
[1610388800262,0.2697,32726.0,32706.0,0.13632608]
[1610388800463,0.1556,32727.0,32706.0,0.13632608]
[1610388800663,0.1556,32727.0,32706.0,0.23972608]
[1610388801869,0.1556,32727.0,32726.0,0.13632608]
[1610388804069,0.5782,32750.0,32726.0,0.82392608]
[1610388804269,1.00803199,32755.0,32727.0,3.4231]
[1610388804469,0.2772,32757.0,32727.0,3.4231]
[1610388805768,0.13632608,32754.0,32743.0,0.13632608]
[1610388806672,0.13632608,32754.0,32743.0,0.13446245]
[1610388807572,0.13632608,32754.0,32727.0,3.4231]
[1610388807772,0.13632608,32741.0,32738.0,0.13632608]
[1610388808574,0.40313,32744.0,32732.0,4.7239]
[1610388809176,0.08523,32744.0,32732.0,4.7239]
[1610388809776,0.08523,32744.0,32743.0,0.13632608]
[1610388811477,0.2713,32758.0,32743.0,0.13632608]
[1610388811877,0.2713,32758.0,32747.0,0.13632608]
[1610388812778,0.2713,32758.0,32732.0,4.7239]
[1610388813181,0.37487,32758.0,32732.0,4.7239]
[1610388813978,0.37487,32758.0,32740.0,0.13632608]
[1610388814181,0.37487,32758.0,32732.0,4.7239]
[1610388814477,0.37487,32758.0,32715.0,0.10871]
[1610388814678,5.1186,32743.0,32701.0,3.4695]
[1610388814878,0.08845,32743.0,32648.0,0.29]
[1610388815078,4.3733,32725.0,32684.0,5.0985]
[1610388815280,4.45141,32725.0,32684.0,5.0985]
[1610388815878,4.45141,32725.0,32699.0,0.13632608]
[1610388816681,0.07811,32725.0,32686.0,0.09339]
[1610388816881,0.07811,32725.0,32699.0,3.4826]
[1610388817080,0.07811,32725.0,32699.0,3.58259]
[1610388817882,0.13632608,32717.0,32710.0,0.13632608]
[1610388818482,0.09585,32734.0,32710.0,0.13632608]
[1610388818690,0.09585,32734.0,32710.0,0.84104608]
[1610388819586,0.09585,32734.0,32710.0,0.70472]
[1610388820086,0.09585,32734.0,32733.0,0.13632608]
[1610388820686,0.2743,32741.0,32733.0,0.13632608]
[1610388821886,0.2743,32741.0,32721.0,4.429]
[1610388822086,0.2743,32741.0,32725.0,0.13632608]
[1610388822286,0.2743,32741.0,32725.0,0.08703]
[1610388823186,0.3179,32742.0,32725.0,0.08703]
[1610388824086,0.3179,32742.0,32741.0,0.13632608]
[1610388824286,0.13632608,32744.0,32741.0,0.13632608]
[1610388824687,0.09895,32750.0,32741.0,0.13632608]
[1610388825489,0.09895,32750.0,32734.0,0.07709]
[1610388826189,0.09895,32750.0,32748.0,0.13632608]
[1610388826991,0.09895,32750.0,32734.0,0.07709]
[1610388827191,3.8956,32762.0,32734.0,0.07709]
[1610388828093,3.8956,32762.0,32738.0,0.13632608]
[1610388828595,3.8956,32762.0,32734.0,0.07709]
[1610388828791,0.2878,32764.0,32734.0,0.07709]
[1610388828995,3.8593,32751.0,32734.0,0.07709]
[1610388829392,3.8593,32751.0,32725.0,0.08703]
[1610388829592,0.10357,32758.0,32734.0,3.4229]
[1610388829792,3.7497,32776.0,32734.0,3.5112]
[1610388829992,1.0,32790.0,32734.0,0.0883]
[1610388830196,0.2735,32789.0,32761.0,0.13632608]
[1610388830594,0.2735,32789.0,32765.0,4.3564]
[1610388832195,0.2735,32789.0,32788.0,0.13632608]
[1610388832596,0.4771,32812.0,32788.0,0.13632608]
[1610388832795,0.3179,32830.0,32803.0,3.6241]
[1610388832998,0.3179,32830.0,32788.0,0.13632608]
[1610388833198,3.4828,32823.0,32789.0,0.02]
[1610388833403,3.58124,32823.0,32789.0,0.02]
[1610388833998,0.09844,32823.0,32789.0,0.02]
[1610388834201,0.09844,32823.0,32810.0,0.13632608]
[1610388834998,0.13632608,32827.0,32810.0,0.13632608]
[1610388835398,0.43124,32830.0,32810.0,0.13632608]
[1610388835999,0.43124,32830.0,32823.0,0.01]
[1610388836197,0.43124,32830.0,32829.0,0.13632608]
[1610388836400,4.5271,32861.0,32829.0,0.21798608]
[1610388836801,0.4735,32867.0,32829.0,0.21798608]
[1610388837798,0.4735,32867.0,32830.0,0.01]
[1610388838201,0.13632608,32866.0,32865.0,0.13632608]
[1610388838400,0.06942,32866.0,32865.0,0.13632608]
[1610388838902,0.06942,32866.0,32849.0,3.8901]
[1610388839098,0.06942,32866.0,32834.0,4.9565]
[1610388839701,0.3179,32867.0,32834.0,4.9565]
[1610388840200,0.3179,32867.0,32830.0,0.01]
[1610388840201,0.13632608,32837.0,32835.0,0.13632608]
[1610388840401,0.13632608,32837.0,32830.0,0.01]
[1610388841603,0.10153,32851.0,32830.0,0.01]
[1610388842305,0.13632608,32840.0,32830.0,0.01]
[1610388844005,0.10539,32841.0,32830.0,0.01]
[1610388844205,0.10539,32841.0,32840.0,0.13632608]
[1610388844607,0.10153,32851.0,32840.0,0.13632608]
[1610388844806,0.10153,32851.0,32834.0,0.07488]
[1610388845205,0.1556,32859.0,32834.0,0.07488]
[1610388845905,0.1556,32859.0,32830.0,0.01]
[1610388846305,0.1556,32859.0,32837.0,0.13632608]
[1610388846911,0.1556,32859.0,32834.0,0.08645]
[1610388847309,4.1348,32851.0,32834.0,0.08645]
[1610388847509,4.20775,32851.0,32834.0,0.08645]
[1610388847711,4.20775,32851.0,32830.0,0.01]
[1610388848030,0.07295,32851.0,32830.0,0.01]
[1610388848232,0.07295,32851.0,32850.0,0.13632608]
[1610388848610,0.2768,32866.0,32850.0,0.21416608]
[1610388849012,0.2768,32866.0,32850.0,0.07784]
[1610388849910,0.2768,32866.0,32845.0,4.892]
[1610388850109,0.38306,32866.0,32845.0,4.892]
[1610388850310,0.13632608,32857.0,32843.0,0.08002]
[1610388850510,0.10751,32859.0,32843.0,0.08002]
[1610388851622,0.38306,32866.0,32843.0,0.08002]
[1610388852117,0.38306,32866.0,32830.0,5.0945]
[1610388852118,0.38306,32866.0,32835.0,0.10576]
[1610388852316,0.38306,32866.0,32859.0,0.13632608]
[1610388852517,0.38306,32866.0,32835.0,0.10576]
[1610388854420,0.38306,32866.0,32857.0,0.13632608]
[1610388855620,0.38306,32866.0,32835.0,0.10576]
[1610388856423,0.38306,32866.0,32854.0,0.13632608]
[1610388858427,0.2768,32866.0,32851.0,0.07828]
[1610388858827,0.34737,32866.0,32851.0,0.07828]
[1610388859027,0.34737,32866.0,32842.0,0.08836]
[1610388859228,0.34737,32866.0,32842.0,5.11086]
[1610388859428,0.34737,32866.0,32842.0,0.08836]
[1610388860027,0.2768,32866.0,32842.0,0.08836]
[1610388860428,0.2768,32866.0,32865.0,0.13632608]
[1610388861628,5.3768,32866.0,32858.0,0.07649]
[1610388861830,0.35899,32866.0,32842.0,0.08836]
[1610388862029,4.1777,32859.0,32835.0,0.10576]
[1610388862231,0.10755,32859.0,32829.0,0.3018995]
[1610388862631,4.7032,32831.0,32829.0,0.3018995]
[1610388862831,4.93213608,32831.0,32829.0,0.3018995]
[1610388864134,5.93213608,32831.0,32829.0,0.3018995]
[1610388864331,5.93213608,32831.0,32776.0,4.6244]
[1610388864733,0.13632608,32790.0,32776.0,4.6244]
[1610388864934,0.13632608,32790.0,32723.0,0.46466205]
[1610388865132,0.13632608,32790.0,32746.0,3.4859]
[1610388865133,3.76652608,32790.0,32746.0,3.4859]
[1610388865931,3.6302,32790.0,32746.0,3.4859]
[1610388866132,0.11092,32791.0,32725.0,0.2724]
[1610388866331,0.11092,32791.0,32763.0,3.8101]
[1610388866732,0.13632608,32790.0,32766.0,0.13632608]
[1610388867834,0.13632608,32790.0,32763.0,3.8101]
[1610388868234,0.11092,32791.0,32763.0,3.8101]
[1610388868737,0.13632608,32790.0,32763.0,3.8101]
[1610388869137,0.11092,32791.0,32763.0,3.8101]
[1610388869737,0.11092,32791.0,32744.0,0.07732]
[1610388869939,4.39512,32791.0,32753.0,4.1971]
[1610388870838,0.13632608,32790.0,32753.0,4.1971]
[1610388871438,0.13632608,32790.0,32750.0,0.13632608]
[1610388871637,0.13632608,32790.0,32767.0,5.0644]
[1610388872439,0.11092,32791.0,32767.0,5.0644]
[1610388872641,0.07965,32800.0,32767.0,5.0644]
[1610388872840,5.0439,32811.0,32767.0,5.0644]
[1610388873041,0.13632608,32790.0,32767.0,5.20072608]
[1610388873241,0.20848608,32790.0,32754.0,0.07309]
[1610388873441,4.05128608,32790.0,32751.0,4.6795]
[1610388874443,4.05128608,32790.0,32789.0,0.02813971]
[1610388874841,4.05128608,32790.0,32789.0,0.01]
[1610388875041,4.05128608,32790.0,32751.0,4.6795]
[1610388877045,0.13632608,32775.0,32751.0,4.6795]
[1610388877646,0.13632608,32775.0,32755.0,0.03]
[1610388878048,0.0762,32776.0,32755.0,0.03]
[1610388878261,0.0762,32776.0,32758.0,5.0856]
[1610388878480,0.07216,32790.0,32758.0,5.0856]
[1610388878663,3.4753,32820.0,32758.0,5.0856]
[1610388878856,1.0,32835.0,32755.0,0.03]
[1610388878857,0.2771,32819.0,32755.0,0.03]
[1610388879054,0.07101,32819.0,32813.0,0.13632608]
[1610388879472,0.05101,32819.0,32813.0,0.13632608]
[1610388880055,0.2895,32844.0,32813.0,0.13632608]
[1610388880247,0.2895,32844.0,32820.0,0.0038]
[1610388881048,0.2895,32844.0,32826.0,0.13632608]
[1610388882451,0.1556,32858.0,32826.0,0.13632608]
[1610388882650,0.1556,32858.0,32820.0,3.6864]
[1610388883252,0.13632608,32847.0,32846.0,0.13632608]
[1610388883452,0.1556,32858.0,32820.0,3.6864]
[1610388885258,0.1556,32858.0,32857.0,0.13632608]
[1610388886457,0.3179,32865.0,32857.0,0.13632608]
[1610388887258,0.3179,32865.0,32855.0,0.07509]
[1610388887660,0.3179,32865.0,32864.0,0.13632608]
[1610388891265,0.07512,32877.0,32864.0,0.13632608]
[1610388891865,0.1556,32893.0,32864.0,0.08615]
[1610388892266,0.1556,32893.0,32878.0,0.13632608]
[1610388893167,0.1556,32893.0,32864.0,0.08615]
[1610388893569,0.23645,32893.0,32862.0,3.9109]
[1610388893767,0.23645,32893.0,32855.0,0.07509]
[1610388893967,0.23645,32893.0,32848.0,0.07629]
[1610388894166,0.23645,32893.0,32843.0,4.5117]
[1610388894368,0.23645,32893.0,32858.0,0.13632608]
[1610388896470,0.13632608,32859.0,32858.0,0.13632608]
[1610388896870,0.13632608,32859.0,32850.0,0.08196]
[1610388897069,0.13632608,32859.0,32809.0,2.13167073]
[1610388897271,0.13632608,32859.0,32833.0,4.1839]
[1610388897670,0.13632608,32859.0,32833.0,4.27665]
[1610388898071,5.13962608,32859.0,32833.0,0.09275]
[1610388898281,5.0033,32859.0,32833.0,0.09275]
[1610388898673,0.13632608,32834.0,32833.0,0.09275]
[1610388898871,0.13632608,32834.0,32828.0,0.13632608]
[1610388899070,0.23836608,32834.0,32828.0,0.13632608]
[1610388900777,0.10204,32834.0,32828.0,0.13632608]
[1610388900973,0.11254,32847.0,32812.0,3.8971]
[1610388901175,0.11254,32847.0,32820.0,0.10555]
[1610388901376,0.13632608,32849.0,32846.0,0.13632608]
[1610388901581,0.1556,32858.0,32846.0,0.13632608]
[1610388902389,0.1556,32858.0,32840.0,0.11209]
[1610388902576,0.26736,32858.0,32833.0,0.10866]
[1610388903377,0.26736,32858.0,32845.0,0.13632608]
[1610388904577,0.26736,32858.0,32840.0,0.08156]
[1610388905878,0.1556,32858.0,32840.0,0.08156]
[1610388906076,0.1556,32858.0,32857.0,0.13632608]
[1610388907078,0.2911,32882.0,32857.0,0.13632608]
[1610388907478,0.1556,32892.0,32857.0,0.13632608]
[1610388907878,0.1556,32892.0,32855.0,0.0839]
[1610388908081,0.1556,32892.0,32856.0,0.13632608]
[1610388910087,0.1556,32892.0,32886.0,0.13632608]
[1610388911691,0.1556,32892.0,32879.0,0.1061]
[1610388911889,0.1556,32892.0,32887.0,4.0994]
[1610388912289,0.08268,32903.0,32887.0,4.0994]
[1610388912790,0.08268,32903.0,32887.0,4.17935]
[1610388912989,0.08268,32903.0,32902.0,0.13632608]
[1610388913190,0.1556,32934.0,32902.0,0.13632608]
[1610388913590,0.1556,32934.0,32912.0,4.2335]
[1610388914592,1.00330198,32969.0,32932.0,3.6015]
[1610388914792,0.294,32968.0,32932.0,3.6015]
[1610388914991,0.40801,32968.0,32964.0,0.13632608]
[1610388915592,0.11401,32968.0,32964.0,0.13632608]
[1610388915991,0.11401,32968.0,32964.0,0.13447572]
[1610388916591,0.11401,32968.0,32944.0,0.09789]
[1610388917192,0.11401,32968.0,32951.0,0.13632608]
[1610388917795,0.11401,32968.0,32944.0,0.09789]
[1610388917996,0.11401,32968.0,32935.0,0.10833]
[1610388918799,0.11401,32968.0,32920.0,4.529]
[1610388919200,0.11401,32968.0,32905.0,0.13632608]
[1610388919201,0.13632608,32921.0,32905.0,0.13632608]
[1610388919403,0.23106608,32921.0,32905.0,0.13632608]
[1610388919801,0.09474,32921.0,32905.0,0.13632608]
[1610388920201,0.09474,32921.0,32886.0,4.3262]
[1610388921213,0.09474,32921.0,32920.0,0.13632608]
[1610388921414,0.09307,32929.0,32920.0,0.13632608]
[1610388922403,0.3179,32934.0,32920.0,0.13632608]
[1610388923203,0.3179,32934.0,32925.0,0.13632608]
[1610388924204,0.3179,32934.0,32916.0,0.08073]
[1610388925205,0.09506,32942.0,32933.0,0.13632608]
[1610388926005,0.09506,32942.0,32924.0,0.08572]
[1610388927007,0.71616,32942.0,32902.0,3.4647]
[1610388927211,0.09506,32942.0,32815.0,1.5]
[1610388927410,3.5545,32930.0,32855.0,0.284]
[1610388927609,0.1556,32929.0,32855.0,0.284]
[1610388927809,0.4381,32929.0,32861.0,3.8229]
[1610388928011,0.4381,32929.0,32861.0,3.92567]
[1610388929814,0.13632608,32905.0,32861.0,3.92567]
[1610388930012,0.13632608,32905.0,32861.0,0.10277]
[1610388931316,0.07563,32913.0,32861.0,0.10277]
[1610388933017,5.1011,32900.0,32840.0,4.3703]
[1610388933217,5.21406,32900.0,32840.0,4.3703]
[1610388933417,0.2911,32899.0,32840.0,4.3703]
[1610388934219,0.2911,32899.0,32871.0,0.13632608]
[1610388934923,5.21406,32900.0,32871.0,0.13632608]
[1610388935320,5.21406,32900.0,32865.0,0.06888]
[1610388936321,0.13632608,32881.0,32874.0,0.13632608]
[1610388936721,0.11141,32891.0,32874.0,0.13632608]
[1610388936921,0.11141,32891.0,32874.0,0.22500608]
[1610388938323,0.11296,32900.0,32890.0,0.13632608]
[1610388938524,0.07563,32913.0,32890.0,0.13632608]
[1610388938722,4.0053,32915.0,32874.0,0.08868]
[1610388939625,0.2938,32919.0,32874.0,0.08868]
[1610388939827,3.6084,32939.0,32874.0,0.08868]
[1610388940027,0.2982,32940.0,32874.0,0.08868]
[1610388940225,0.13632608,32906.0,32899.0,0.13632608]
[1610388941227,0.09149,32915.0,32899.0,0.13632608]
[1610388942329,0.09149,32915.0,32914.0,0.13632608]
[1610388942729,0.2982,32940.0,32907.0,0.08445]